[Event "Titled Tuesday Blitz October 18 Late 2022"]
[White "Manukyan, Artyom"]
[Black "Rasulov, Vugar"]
[WhiteFideId "13305786"]
[BlackFideId "13402390"]
[WhiteElo "2078"]
[BlackElo "2509"]
[Result "0-1"]
[Round "01"]
[TimeControl "180+1"]
[Date "2022.10.18"]
[WhiteClock "0:00:23"]
[BlackClock "0:02:04"]

1. e4 {[%clk 0:02:58]}  e5 {[%clk 0:02:59]} 2. Nf3 {[%clk 0:02:57]}  Nc6 {[%clk 0:02:59]} 3. Bb5 {[%clk 0:02:57]}  a6 {[%clk 0:03:00]} 4. Bxc6 {[%clk 0:02:57]}  dxc6 {[%clk 0:02:59]} 5. O-O {[%clk 0:02:58]}  Bg4 {[%clk 0:02:59]} 6. h3 {[%clk 0:02:57]}  Bxf3 {[%clk 0:02:58]} 7. Qxf3 {[%clk 0:02:57]}  Qd7 {[%clk 0:02:59]} 8. d3 {[%clk 0:02:57]}  f6 {[%clk 0:02:58]} 9. Be3 {[%clk 0:02:57]}  h5 {[%clk 0:02:57]} 10. Nd2 {[%clk 0:02:56]}  g5 {[%clk 0:02:56]} 11. Qg3 {[%clk 0:02:55]}  O-O-O {[%clk 0:02:52]} 12. Rfb1 {[%clk 0:02:54]}  Nh6 {[%clk 0:02:51]} 13. b4 {[%clk 0:02:52]}  h4 {[%clk 0:02:51]} 14. Qf3 {[%clk 0:02:47]}  g4 {[%clk 0:02:52]} 15. hxg4 {[%clk 0:02:47]}  Nxg4 {[%clk 0:02:53]} 16. a4 {[%clk 0:02:47]}  Nxe3 {[%clk 0:02:52]} 17. Qxe3 {[%clk 0:02:38]}  Bh6 {[%clk 0:02:51]} 18. Qe2 {[%clk 0:02:32]}  Rdg8 {[%clk 0:02:48]} 19. b5 {[%clk 0:02:30]}  Bxd2 {[%clk 0:02:43]} 20. Qxd2 {[%clk 0:02:28]}  Qh3 {[%clk 0:02:37]} 21. f3 {[%clk 0:01:59]}  Qxf3 {[%clk 0:02:37]} 22. Qf2 {[%clk 0:01:53]}  Qxf2+ {[%clk 0:02:27]} 23. Kxf2 {[%clk 0:01:54]}  a5 {[%clk 0:02:27]} 24. bxc6 {[%clk 0:01:52]}  bxc6 {[%clk 0:02:28]} 25. Rh1 {[%clk 0:01:52]}  Rg4 {[%clk 0:02:28]} 26. Rh2 {[%clk 0:01:47]}  Kd7 {[%clk 0:02:27]} 27. Rb1 {[%clk 0:01:45]}  Rf4+ {[%clk 0:02:21]} 28. Ke3 {[%clk 0:01:43]}  Rg8 {[%clk 0:02:20]} 29. Rb3 {[%clk 0:01:21]}  Rg3+ {[%clk 0:02:17]} 30. Ke2 {[%clk 0:01:20]}  c5 {[%clk 0:02:16]} 31. Rb5 {[%clk 0:01:19]}  c4 {[%clk 0:02:16]} 32. Rxa5 {[%clk 0:01:18]}  cxd3+ {[%clk 0:02:16]} 33. cxd3 {[%clk 0:01:19]}  Rfg4 {[%clk 0:02:16]} 34. Rd5+ {[%clk 0:01:17]}  Ke7 {[%clk 0:02:13]} 35. Kf2 {[%clk 0:01:02]}  c6 {[%clk 0:02:13]} 36. Rc5 {[%clk 0:01:02]}  Rxd3 {[%clk 0:02:09]} 37. Rxc6 {[%clk 0:00:30]}  Rd2+ {[%clk 0:02:09]} 38. Ke3 {[%clk 0:00:26]}  Ra2 {[%clk 0:02:04]} 39. Ra6 {[%clk 0:00:23]}  Rg3# {[%clk 0:02:04]} 0-1


[Site "https://www.chess.com"]

[Event "Titled Tuesday Blitz October 18 Late 2022"]
[White "Medvegyne Balogh, Emese"]
[Black "Cruz, William Ferreira Da"]
[WhiteFideId "724980"]
[BlackFideId "2118050"]
[WhiteElo "2087"]
[BlackElo "2223"]
[Result "0-1"]
[Round "01"]
[TimeControl "180+1"]
[Date "2022.10.19"]
[WhiteClock "0:00:10"]
[BlackClock "0:00:19"]

1. e4 {[%clk 0:02:56]}  e6 {[%clk 0:02:59]} 2. d4 {[%clk 0:02:55]}  d5 {[%clk 0:02:59]} 3. Nd2 {[%clk 0:02:55]}  Be7 {[%clk 0:02:57]} 4. c3 {[%clk 0:02:53]}  c5 {[%clk 0:02:55]} 5. exd5 {[%clk 0:02:52]}  exd5 {[%clk 0:02:53]} 6. Ndf3 {[%clk 0:02:52]}  Nf6 {[%clk 0:02:53]} 7. Ne2 {[%clk 0:02:52]}  O-O {[%clk 0:02:52]} 8. Be3 {[%clk 0:02:52]}  b6 {[%clk 0:02:34]} 9. Ng3 {[%clk 0:02:48]}  Re8 {[%clk 0:02:28]} 10. Be2 {[%clk 0:02:48]}  Ng4 {[%clk 0:02:14]} 11. Bf4 {[%clk 0:02:47]}  Ba6 {[%clk 0:02:03]} 12. O-O {[%clk 0:02:37]}  Bxe2 {[%clk 0:02:00]} 13. Nxe2 {[%clk 0:02:38]}  Bd6 {[%clk 0:01:56]} 14. h3 {[%clk 0:02:12]}  Nf6 {[%clk 0:01:49]} 15. Bg5 {[%clk 0:02:11]}  Nbd7 {[%clk 0:01:47]} 16. Ng3 {[%clk 0:02:05]}  Bxg3 {[%clk 0:01:36]} 17. fxg3 {[%clk 0:02:06]}  Qc7 {[%clk 0:01:33]} 18. Bf4 {[%clk 0:02:05]}  Qb7 {[%clk 0:01:30]} 19. Ne5 {[%clk 0:01:57]}  Nxe5 {[%clk 0:01:23]} 20. dxe5 {[%clk 0:01:56]}  Nd7 {[%clk 0:01:16]} 21. Qh5 {[%clk 0:01:52]}  Nf8 {[%clk 0:01:14]} 22. Rae1 {[%clk 0:01:49]}  Rad8 {[%clk 0:01:13]} 23. Bg5 {[%clk 0:01:43]}  Rd7 {[%clk 0:01:08]} 24. Qg4 {[%clk 0:01:10]}  d4 {[%clk 0:00:57]} 25. Bf6 {[%clk 0:01:02]}  Ne6 {[%clk 0:00:52]} 26. cxd4 {[%clk 0:01:01]}  Rxd4 {[%clk 0:00:46]} 27. Qh5 {[%clk 0:00:54]}  Rd2 {[%clk 0:00:42]} 28. Rf3 {[%clk 0:00:49]}  Qd5 {[%clk 0:00:34]} 29. Bxg7 {[%clk 0:00:42]}  Nxg7 {[%clk 0:00:32]} 30. Qg5 {[%clk 0:00:23]}  Rd1 {[%clk 0:00:26]} 31. Re3 {[%clk 0:00:21]}  Rxe1+ {[%clk 0:00:25]} 32. Rxe1 {[%clk 0:00:22]}  Qd4+ {[%clk 0:00:26]} 33. Kh2 {[%clk 0:00:22]}  Qd3 {[%clk 0:00:24]} 34. h4 {[%clk 0:00:18]}  Qg6 {[%clk 0:00:25]} 35. Qf4 {[%clk 0:00:18]}  Ne6 {[%clk 0:00:24]} 36. Qc4 {[%clk 0:00:17]}  Nd4 {[%clk 0:00:24]} 37. Rf1 {[%clk 0:00:16]}  Qe6 {[%clk 0:00:23]} 38. Qd3 {[%clk 0:00:16]}  Qxe5 {[%clk 0:00:22]} 39. Rf4 {[%clk 0:00:15]}  Re6 {[%clk 0:00:22]} 40. Qa6 {[%clk 0:00:14]}  Rg6 {[%clk 0:00:21]} 41. Qc8+ {[%clk 0:00:14]}  Kg7 {[%clk 0:00:21]} 42. Qb7 {[%clk 0:00:14]}  Qe3 {[%clk 0:00:20]} 43. Rf3 {[%clk 0:00:09]}  Nxf3+ {[%clk 0:00:19]} 44. gxf3 {[%clk 0:00:10]}  Qf2+ {[%clk 0:00:19]} 0-1


[Site "https://www.chess.com"]

[Event "Titled Tuesday Blitz October 18 Late 2022"]
[White "Melikhov, Evgeny V."]
[Black "Erdogdu, Mert"]
[WhiteFideId "4122046"]
[BlackFideId "6301495"]
[WhiteElo "2169"]
[BlackElo "2413"]
[Result "0-1"]
[Round "01"]
[TimeControl "180+1"]
[Date "2022.10.19"]
[WhiteClock "0:00:05"]
[BlackClock "0:01:17"]

1. d4 {[%clk 0:02:58]}  d5 {[%clk 0:02:59]} 2. c4 {[%clk 0:02:58]}  e6 {[%clk 0:03:00]} 3. Nc3 {[%clk 0:02:57]}  c5 {[%clk 0:03:00]} 4. cxd5 {[%clk 0:02:57]}  exd5 {[%clk 0:03:01]} 5. Nf3 {[%clk 0:02:56]}  Nc6 {[%clk 0:03:01]} 6. g3 {[%clk 0:02:55]}  Nf6 {[%clk 0:03:02]} 7. Bg2 {[%clk 0:02:55]}  Be7 {[%clk 0:03:02]} 8. O-O {[%clk 0:02:54]}  O-O {[%clk 0:03:02]} 9. Bg5 {[%clk 0:02:52]}  cxd4 {[%clk 0:03:02]} 10. Nxd4 {[%clk 0:02:52]}  h6 {[%clk 0:03:03]} 11. Be3 {[%clk 0:02:52]}  Re8 {[%clk 0:03:03]} 12. Rc1 {[%clk 0:02:51]}  Bg4 {[%clk 0:03:03]} 13. Nxc6 {[%clk 0:02:50]}  bxc6 {[%clk 0:03:03]} 14. Na4 {[%clk 0:02:49]}  Qd7 {[%clk 0:03:03]} 15. Bc5 {[%clk 0:02:35]}  Bd8 {[%clk 0:03:02]} 16. Re1 {[%clk 0:02:24]}  Bh3 {[%clk 0:03:00]} 17. Bh1 {[%clk 0:02:03]}  Rc8 {[%clk 0:02:53]} 18. Qd4 {[%clk 0:01:53]}  Ne4 {[%clk 0:02:46]} 19. b3 {[%clk 0:01:01]}  Bf6 {[%clk 0:02:30]} 20. Qd3 {[%clk 0:00:59]}  h5 {[%clk 0:02:26]} 21. f3 {[%clk 0:00:49]}  Nxc5 {[%clk 0:02:21]} 22. Nxc5 {[%clk 0:00:48]}  Qd6 {[%clk 0:02:17]} 23. e4 {[%clk 0:00:43]}  h4 {[%clk 0:02:12]} 24. f4 {[%clk 0:00:35]}  Bb2 {[%clk 0:02:03]} 25. Rc2 {[%clk 0:00:21]}  Ba3 {[%clk 0:01:57]} 26. Qd4 {[%clk 0:00:21]}  f6 {[%clk 0:01:48]} 27. e5 {[%clk 0:00:19]}  fxe5 {[%clk 0:01:46]} 28. fxe5 {[%clk 0:00:19]}  Qg6 {[%clk 0:01:41]} 29. Rce2 {[%clk 0:00:12]}  hxg3 {[%clk 0:01:41]} 30. Bg2 {[%clk 0:00:09]}  Bg4 {[%clk 0:01:34]} 31. Re3 {[%clk 0:00:09]}  gxh2+ {[%clk 0:01:33]} 32. Kh1 {[%clk 0:00:10]}  Bf5 {[%clk 0:01:29]} 33. e6 {[%clk 0:00:09]}  Bxc5 {[%clk 0:01:24]} 34. Qxc5 {[%clk 0:00:09]}  Rxe6 {[%clk 0:01:24]} 35. Rxe6 {[%clk 0:00:09]}  Bxe6 {[%clk 0:01:24]} 36. Qd6 {[%clk 0:00:07]}  Bf5 {[%clk 0:01:23]} 37. Qe7 {[%clk 0:00:06]}  Rf8 {[%clk 0:01:21]} 38. Re3 {[%clk 0:00:05]}  Be4 {[%clk 0:01:17]} 0-1


[Site "https://www.chess.com"]

[Event "Titled Tuesday Blitz October 18 Late 2022"]
[White "Mendez Fortes, Eduardo Jesus"]
[Black "Galaktionov, Artem"]
[WhiteFideId "3502376"]
[BlackFideId "24175471"]
[WhiteElo "2307"]
[BlackElo "2278"]
[Result "0-1"]
[Round "01"]
[TimeControl "180+1"]
[Date "2022.10.18"]
[WhiteClock "0:00:27"]
[BlackClock "0:01:50"]

1. e4 {[%clk 0:03:00]}  c6 {[%clk 0:03:00]} 2. d4 {[%clk 0:02:54]}  d6 {[%clk 0:03:01]} 3. Nc3 {[%clk 0:02:54]}  Nd7 {[%clk 0:03:02]} 4. f4 {[%clk 0:02:51]}  g6 {[%clk 0:03:02]} 5. Nf3 {[%clk 0:02:51]}  Bg7 {[%clk 0:03:01]} 6. e5 {[%clk 0:02:49]}  dxe5 {[%clk 0:03:01]} 7. dxe5 {[%clk 0:02:49]}  Nc5 {[%clk 0:03:01]} 8. Qxd8+ {[%clk 0:02:47]}  Kxd8 {[%clk 0:03:02]} 9. Be3 {[%clk 0:02:48]}  Ne6 {[%clk 0:03:02]} 10. O-O-O+ {[%clk 0:02:48]}  Kc7 {[%clk 0:03:02]} 11. Ne4 {[%clk 0:02:46]}  h5 {[%clk 0:03:02]} 12. Neg5 {[%clk 0:02:41]}  Nh6 {[%clk 0:03:01]} 13. Bc4 {[%clk 0:02:36]}  Nxg5 {[%clk 0:02:56]} 14. Nxg5 {[%clk 0:02:37]}  e6 {[%clk 0:02:57]} 15. Bc5 {[%clk 0:02:29]}  Bf8 {[%clk 0:02:56]} 16. Bd6+ {[%clk 0:02:17]}  Bxd6 {[%clk 0:02:56]} 17. Rxd6 {[%clk 0:02:18]}  Rd8 {[%clk 0:02:53]} 18. Rhd1 {[%clk 0:02:17]}  Rxd6 {[%clk 0:02:53]} 19. Rxd6 {[%clk 0:02:18]}  Bd7 {[%clk 0:02:52]} 20. Bd3 {[%clk 0:02:14]}  Rd8 {[%clk 0:02:51]} 21. c4 {[%clk 0:02:04]}  c5 {[%clk 0:02:51]} 22. Be4 {[%clk 0:01:51]}  b6 {[%clk 0:02:50]} 23. h3 {[%clk 0:01:47]}  Be8 {[%clk 0:02:46]} 24. Rxd8 {[%clk 0:01:34]}  Kxd8 {[%clk 0:02:47]} 25. Kd2 {[%clk 0:01:34]}  Ng8 {[%clk 0:02:42]} 26. g4 {[%clk 0:01:33]}  hxg4 {[%clk 0:02:42]} 27. hxg4 {[%clk 0:01:34]}  Ke7 {[%clk 0:02:38]} 28. Ke3 {[%clk 0:01:30]}  f5 {[%clk 0:02:27]} 29. exf6+ {[%clk 0:01:17]}  Nxf6 {[%clk 0:02:28]} 30. Bf3 {[%clk 0:01:08]}  Kd6 {[%clk 0:02:26]} 31. Ne4+ {[%clk 0:01:00]}  Nxe4 {[%clk 0:02:26]} 32. Bxe4 {[%clk 0:01:01]}  e5 {[%clk 0:02:26]} 33. f5 {[%clk 0:00:58]}  g5 {[%clk 0:02:10]} 34. Bd5 {[%clk 0:00:55]}  Ke7 {[%clk 0:02:11]} 35. Ke4 {[%clk 0:00:54]}  Kf6 {[%clk 0:02:11]} 36. b3 {[%clk 0:00:50]}  a5 {[%clk 0:02:04]} 37. Bb7 {[%clk 0:00:47]}  Bf7 {[%clk 0:02:04]} 38. Bd5 {[%clk 0:00:47]}  Be8 {[%clk 0:02:03]} 39. Bb7 {[%clk 0:00:46]}  Bd7 {[%clk 0:01:52]} 40. Kd5 {[%clk 0:00:42]}  Bxf5 {[%clk 0:01:52]} 41. gxf5 {[%clk 0:00:43]}  Kxf5 {[%clk 0:01:53]} 42. Kc6 {[%clk 0:00:40]}  e4 {[%clk 0:01:53]} 43. Kxb6 {[%clk 0:00:40]}  g4 {[%clk 0:01:51]} 44. Kxc5 {[%clk 0:00:38]}  e3 {[%clk 0:01:52]} 45. Kd4 {[%clk 0:00:27]}  e2 {[%clk 0:01:51]} 46. Be4+ {[%clk 0:00:27]}  Kf4 {[%clk 0:01:50]} 0-1


[Site "https://www.chess.com"]

[Event "Titled Tuesday Blitz October 18 Late 2022"]
[White "Mickiewicz, Piotr"]
[Black "Wieczorek, Oskar"]
[WhiteFideId "1114891"]
[BlackFideId "1133950"]
[WhiteElo "2246"]
[BlackElo "2404"]
[Result "0-1"]
[Round "01"]
[TimeControl "180+1"]
[Date "2022.10.19"]
[WhiteClock "0:00:05"]
[BlackClock "0:00:08"]

1. g3 {[%clk 0:03:00]}  g6 {[%clk 0:02:59]} 2. Bg2 {[%clk 0:03:00]}  Bg7 {[%clk 0:02:59]} 3. Nf3 {[%clk 0:03:01]}  Nf6 {[%clk 0:02:59]} 4. O-O {[%clk 0:03:02]}  O-O {[%clk 0:03:00]} 5. d3 {[%clk 0:03:02]}  d6 {[%clk 0:03:01]} 6. e4 {[%clk 0:03:01]}  e5 {[%clk 0:03:01]} 7. Nc3 {[%clk 0:03:00]}  Nc6 {[%clk 0:03:01]} 8. Bg5 {[%clk 0:02:58]}  Bg4 {[%clk 0:03:01]} 9. h3 {[%clk 0:02:56]}  Bxf3 {[%clk 0:02:56]} 10. Bxf3 {[%clk 0:02:55]}  h6 {[%clk 0:02:56]} 11. Be3 {[%clk 0:02:54]}  Nd4 {[%clk 0:02:49]} 12. Bxd4 {[%clk 0:02:53]}  exd4 {[%clk 0:02:50]} 13. Ne2 {[%clk 0:02:52]}  Nd7 {[%clk 0:02:50]} 14. Bg2 {[%clk 0:02:52]}  c6 {[%clk 0:02:37]} 15. a4 {[%clk 0:02:48]}  a5 {[%clk 0:02:24]} 16. Kh2 {[%clk 0:02:35]}  Nc5 {[%clk 0:02:14]} 17. Qd2 {[%clk 0:02:31]}  Qb6 {[%clk 0:02:03]} 18. b3 {[%clk 0:02:30]}  Qb4 {[%clk 0:01:54]} 19. Qxb4 {[%clk 0:02:17]}  axb4 {[%clk 0:01:54]} 20. Ng1 {[%clk 0:02:17]}  Ra5 {[%clk 0:01:46]} 21. Nf3 {[%clk 0:02:16]}  Rfa8 {[%clk 0:01:46]} 22. Rae1 {[%clk 0:02:02]}  Nd7 {[%clk 0:01:43]} 23. Nd2 {[%clk 0:01:59]}  Rc5 {[%clk 0:01:07]} 24. Nc4 {[%clk 0:01:47]}  Bf8 {[%clk 0:01:01]} 25. Re2 {[%clk 0:01:25]}  Ra7 {[%clk 0:00:32]} 26. f4 {[%clk 0:01:20]}  b5 {[%clk 0:00:32]} 27. Nb2 {[%clk 0:01:14]}  Nb6 {[%clk 0:00:27]} 28. e5 {[%clk 0:00:59]}  bxa4 {[%clk 0:00:21]} 29. Nxa4 {[%clk 0:00:45]}  Nxa4 {[%clk 0:00:21]} 30. bxa4 {[%clk 0:00:46]}  d5 {[%clk 0:00:13]} 31. e6 {[%clk 0:00:45]}  f5 {[%clk 0:00:12]} 32. e7 {[%clk 0:00:36]}  Rxe7 {[%clk 0:00:11]} 33. Rxe7 {[%clk 0:00:34]}  Bxe7 {[%clk 0:00:12]} 34. Re1 {[%clk 0:00:34]}  Kf7 {[%clk 0:00:13]} 35. Re2 {[%clk 0:00:35]}  Ra5 {[%clk 0:00:13]} 36. g4 {[%clk 0:00:32]}  Rxa4 {[%clk 0:00:13]} 37. gxf5 {[%clk 0:00:32]}  gxf5 {[%clk 0:00:14]} 38. Bf3 {[%clk 0:00:32]}  Bd6 {[%clk 0:00:13]} 39. Bh5+ {[%clk 0:00:31]}  Kf6 {[%clk 0:00:14]} 40. Kg3 {[%clk 0:00:31]}  Ra2 {[%clk 0:00:09]} 41. Kf3 {[%clk 0:00:30]}  c5 {[%clk 0:00:09]} 42. Rg2 {[%clk 0:00:24]}  c4 {[%clk 0:00:07]} 43. Rg6+ {[%clk 0:00:21]}  Ke7 {[%clk 0:00:08]} 44. Rg7+ {[%clk 0:00:21]}  Kd8 {[%clk 0:00:07]} 45. Bg6 {[%clk 0:00:17]}  Rxc2 {[%clk 0:00:06]} 46. Bxf5 {[%clk 0:00:17]}  c3 {[%clk 0:00:06]} 47. Rd7+ {[%clk 0:00:17]}  Ke8 {[%clk 0:00:06]} 48. Rxd6 {[%clk 0:00:18]}  b3 {[%clk 0:00:06]} 49. Rb6 {[%clk 0:00:15]}  b2 {[%clk 0:00:07]} 50. Bg6+ {[%clk 0:00:08]}  Kd8 {[%clk 0:00:07]} 51. f5 {[%clk 0:00:09]}  Rc1 {[%clk 0:00:07]} 52. f6 {[%clk 0:00:09]}  b1=Q {[%clk 0:00:07]} 53. Rd6+ {[%clk 0:00:04]}  Kc7 {[%clk 0:00:07]} 54. Rxd5 {[%clk 0:00:05]}  Rf1+ {[%clk 0:00:07]} 55. Ke4 {[%clk 0:00:06]}  Qe1+ {[%clk 0:00:07]} 56. Kxd4 {[%clk 0:00:07]}  Rf4+ {[%clk 0:00:07]} 57. Kc5 {[%clk 0:00:06]}  Rxf6 {[%clk 0:00:08]} 58. Rd7+ {[%clk 0:00:05]}  Kxd7 {[%clk 0:00:08]} 0-1


[Site "https://www.chess.com"]

[Event "Titled Tuesday Blitz October 18 Late 2022"]
[White "Moaataz, Ayah"]
[Black "Lizak, Peter"]
[WhiteFideId "10615873"]
[BlackFideId "731595"]
[WhiteElo "1993"]
[BlackElo "2420"]
[Result "0-1"]
[Round "01"]
[TimeControl "180+1"]
[Date "2022.10.19"]
[WhiteClock "0:00:43"]
[BlackClock "0:00:49"]

1. c4 {[%clk 0:02:59]}  b6 {[%clk 0:02:58]} 2. g3 {[%clk 0:03:00]}  Bb7 {[%clk 0:02:59]} 3. Nf3 {[%clk 0:03:01]}  Nf6 {[%clk 0:02:58]} 4. Bg2 {[%clk 0:03:01]}  g6 {[%clk 0:02:59]} 5. O-O {[%clk 0:03:01]}  Bg7 {[%clk 0:02:59]} 6. d4 {[%clk 0:03:02]}  O-O {[%clk 0:02:59]} 7. Nc3 {[%clk 0:03:03]}  Ne4 {[%clk 0:02:59]} 8. Qc2 {[%clk 0:02:57]}  Nxc3 {[%clk 0:02:58]} 9. Qxc3 {[%clk 0:02:53]}  c5 {[%clk 0:02:56]} 10. e3 {[%clk 0:02:50]}  Be4 {[%clk 0:02:56]} 11. b3 {[%clk 0:02:40]}  Nc6 {[%clk 0:02:52]} 12. Qd2 {[%clk 0:02:34]}  Bxf3 {[%clk 0:02:39]} 13. Bxf3 {[%clk 0:02:35]}  cxd4 {[%clk 0:02:39]} 14. Bb2 {[%clk 0:02:28]}  dxe3 {[%clk 0:02:39]} 15. fxe3 {[%clk 0:02:29]}  Bxb2 {[%clk 0:02:38]} 16. Qxb2 {[%clk 0:02:28]}  Qc7 {[%clk 0:02:38]} 17. Bd5 {[%clk 0:02:26]}  Rad8 {[%clk 0:02:32]} 18. Rf2 {[%clk 0:02:27]}  Qe5 {[%clk 0:02:28]} 19. Raf1 {[%clk 0:02:19]}  Qxb2 {[%clk 0:02:26]} 20. Rxb2 {[%clk 0:02:18]}  Ne5 {[%clk 0:02:24]} 21. Rd1 {[%clk 0:02:12]}  Kg7 {[%clk 0:02:22]} 22. h3 {[%clk 0:02:12]}  d6 {[%clk 0:02:20]} 23. Rbd2 {[%clk 0:02:11]}  Rc8 {[%clk 0:02:20]} 24. Kf2 {[%clk 0:02:10]}  Rc5 {[%clk 0:02:18]} 25. Be4 {[%clk 0:02:07]}  Rfc8 {[%clk 0:02:14]} 26. Bd5 {[%clk 0:02:01]}  b5 {[%clk 0:02:06]} 27. cxb5 {[%clk 0:02:00]}  Rxb5 {[%clk 0:02:05]} 28. Ke2 {[%clk 0:02:01]}  Rbc5 {[%clk 0:02:02]} 29. Rf1 {[%clk 0:02:00]}  a5 {[%clk 0:01:59]} 30. a4 {[%clk 0:01:59]}  Rc3 {[%clk 0:01:53]} 31. Rf4 {[%clk 0:01:56]}  e6 {[%clk 0:01:47]} 32. Bb7 {[%clk 0:01:42]}  Rb8 {[%clk 0:01:42]} 33. Ba6 {[%clk 0:01:42]}  d5 {[%clk 0:01:42]} 34. Bb5 {[%clk 0:01:40]}  Rxb3 {[%clk 0:01:40]} 35. Rc2 {[%clk 0:01:41]}  Rb7 {[%clk 0:01:35]} 36. e4 {[%clk 0:01:41]}  d4 {[%clk 0:01:34]} 37. Kf2 {[%clk 0:01:36]}  R3xb5 {[%clk 0:01:07]} 38. axb5 {[%clk 0:01:36]}  Nd3+ {[%clk 0:01:07]} 39. Ke2 {[%clk 0:01:36]}  Nxf4+ {[%clk 0:01:06]} 40. gxf4 {[%clk 0:01:37]}  Rxb5 {[%clk 0:01:07]} 41. Kd3 {[%clk 0:01:30]}  a4 {[%clk 0:01:01]} 42. Kxd4 {[%clk 0:01:26]}  a3 {[%clk 0:01:01]} 43. h4 {[%clk 0:01:21]}  Rb4+ {[%clk 0:00:59]} 44. Kd3 {[%clk 0:01:07]}  Ra4 {[%clk 0:00:57]} 45. Ra2 {[%clk 0:01:05]}  Kh6 {[%clk 0:00:57]} 46. Ke3 {[%clk 0:00:51]}  Kh5 {[%clk 0:00:54]} 47. Kf3 {[%clk 0:00:50]}  f6 {[%clk 0:00:51]} 48. e5 {[%clk 0:00:42]}  fxe5 {[%clk 0:00:49]} 49. fxe5 {[%clk 0:00:43]}  Kxh4 {[%clk 0:00:49]} 0-1


[Site "https://www.chess.com"]

[Event "Titled Tuesday Blitz October 18 Late 2022"]
[White "Moroni, Luca Jr"]
[Black "Przybylski, Wojciech"]
[WhiteFideId "865834"]
[BlackFideId "1117599"]
[WhiteElo "2573"]
[BlackElo "2221"]
[Result "1-0"]
[Round "01"]
[TimeControl "180+1"]
[Date "2022.10.18"]
[WhiteClock "0:02:03"]
[BlackClock "0:00:15"]

1. d4 {[%clk 0:02:50]}  Nf6 {[%clk 0:02:58]} 2. Bf4 {[%clk 0:02:50]}  b6 {[%clk 0:02:57]} 3. e3 {[%clk 0:02:49]}  Bb7 {[%clk 0:02:57]} 4. h3 {[%clk 0:02:50]}  c5 {[%clk 0:02:56]} 5. Nf3 {[%clk 0:02:50]}  e6 {[%clk 0:02:55]} 6. c3 {[%clk 0:02:50]}  Be7 {[%clk 0:02:55]} 7. Nbd2 {[%clk 0:02:50]}  O-O {[%clk 0:02:55]} 8. Bd3 {[%clk 0:02:51]}  d5 {[%clk 0:02:52]} 9. O-O {[%clk 0:02:51]}  Nbd7 {[%clk 0:02:49]} 10. a4 {[%clk 0:02:51]}  a6 {[%clk 0:02:47]} 11. Qe2 {[%clk 0:02:48]}  c4 {[%clk 0:02:45]} 12. Bc2 {[%clk 0:02:48]}  b5 {[%clk 0:02:45]} 13. Bg5 {[%clk 0:02:46]}  Ne4 {[%clk 0:02:41]} 14. Bxe7 {[%clk 0:02:46]}  Qxe7 {[%clk 0:02:40]} 15. Nxe4 {[%clk 0:02:42]}  dxe4 {[%clk 0:02:40]} 16. Nd2 {[%clk 0:02:43]}  f5 {[%clk 0:02:38]} 17. f3 {[%clk 0:02:42]}  exf3 {[%clk 0:02:28]} 18. Nxf3 {[%clk 0:02:43]}  e5 {[%clk 0:02:26]} 19. axb5 {[%clk 0:02:38]}  e4 {[%clk 0:02:21]} 20. Qxc4+ {[%clk 0:02:34]}  Kh8 {[%clk 0:02:21]} 21. Nd2 {[%clk 0:02:34]}  Nb6 {[%clk 0:01:44]} 22. Qe2 {[%clk 0:02:30]}  Nd5 {[%clk 0:01:29]} 23. bxa6 {[%clk 0:02:27]}  Bc6 {[%clk 0:01:27]} 24. Bb3 {[%clk 0:02:22]}  f4 {[%clk 0:01:12]} 25. Bxd5 {[%clk 0:02:19]}  f3 {[%clk 0:01:05]} 26. Qc4 {[%clk 0:02:15]}  Qg5 {[%clk 0:01:03]} 27. Rf2 {[%clk 0:02:13]}  Bxd5 {[%clk 0:00:56]} 28. Qc5 {[%clk 0:02:12]}  Qxe3 {[%clk 0:00:38]} 29. Qxd5 {[%clk 0:02:08]}  fxg2 {[%clk 0:00:37]} 30. Nxe4 {[%clk 0:02:08]}  Rxf2 {[%clk 0:00:18]} 31. Nxf2 {[%clk 0:02:06]}  Rf8 {[%clk 0:00:18]} 32. Qxg2 {[%clk 0:02:04]}  Rf3 {[%clk 0:00:15]} 33. a7 {[%clk 0:02:03]} 1-0


[Site "https://www.chess.com"]

[Event "Titled Tuesday Blitz October 18 Late 2022"]
[White "Nakamura, Hikaru"]
[Black "Golubev, Mikhail"]
[WhiteFideId "2016192"]
[BlackFideId "14100983"]
[WhiteElo "2909"]
[BlackElo "2374"]
[Result "1-0"]
[Round "01"]
[TimeControl "180+1"]
[Date "2022.10.18"]
[WhiteClock "0:02:11"]
[BlackClock "0:00:16"]

1. g4 {[%clk 0:03:00]}  g5 {[%clk 0:02:52]} 2. h4 {[%clk 0:02:59]}  gxh4 {[%clk 0:02:50]} 3. d4 {[%clk 0:02:59]}  e6 {[%clk 0:02:38]} 4. e4 {[%clk 0:02:57]}  c5 {[%clk 0:02:33]} 5. Nc3 {[%clk 0:02:50]}  cxd4 {[%clk 0:02:15]} 6. Qxd4 {[%clk 0:02:50]}  Nf6 {[%clk 0:02:12]} 7. g5 {[%clk 0:02:48]}  Ng4 {[%clk 0:01:45]} 8. Qxh8 {[%clk 0:02:46]}  Qb6 {[%clk 0:01:44]} 9. Nd1 {[%clk 0:02:41]}  Nc6 {[%clk 0:01:33]} 10. c3 {[%clk 0:02:36]}  Nce5 {[%clk 0:01:22]} 11. Be2 {[%clk 0:02:27]}  Ng6 {[%clk 0:01:17]} 12. Qxh7 {[%clk 0:02:25]}  N4e5 {[%clk 0:01:03]} 13. f4 {[%clk 0:02:23]}  Bc5 {[%clk 0:00:48]} 14. Nh3 {[%clk 0:02:17]}  d5 {[%clk 0:00:25]} 15. fxe5 {[%clk 0:02:16]}  dxe4 {[%clk 0:00:25]} 16. Rf1 {[%clk 0:02:15]}  Qc7 {[%clk 0:00:16]} 17. Bb5+ {[%clk 0:02:11]} 1-0


[Site "https://www.chess.com"]